[Event "*** Titled Tuesday Blitz"]
[Site "Chess.com"]
[Date "2019.08.06"]
[Round "10"]
[White "tbalabayev"]
[Black "yoolund"]
[Result "0-1"]
[WhiteElo "2390"]
[BlackElo "2640"]
[TimeControl "180+2"]
[EndTime "15:24:18 PDT"]
[Termination "yoolund won by checkmate"]

1. Nf3 {[%clk 0:03:01.9]} 1... g6 {[%clk 0:03:00.1]} 2. g3 {[%clk 0:03:02.8]}
2... Bg7 {[%clk 0:03:01.2]} 3. Bg2 {[%clk 0:03:04.7]} 3... d6 {[%clk 0:03:02.2]}
4. O-O {[%clk 0:03:06.6]} 4... Nc6 {[%clk 0:03:03.5]} 5. e4 {[%clk 0:03:06.5]}
5... Nf6 {[%clk 0:03:03.9]} 6. Re1 {[%clk 0:03:07.2]} 6... O-O {[%clk
0:03:04.7]} 7. d4 {[%clk 0:03:07]} 7... e5 {[%clk 0:03:05.2]} 8. d5 {[%clk
0:02:54.8]} 8... Ne7 {[%clk 0:03:05.3]} 9. c4 {[%clk 0:02:55.7]} 9... Nd7 {[%clk
0:03:05.2]} 10. Nc3 {[%clk 0:02:55.9]} 10... h6 {[%clk 0:03:05.3]} 11. Rb1
{[%clk 0:02:54.1]} 11... a5 {[%clk 0:02:50.7]} 12. a3 {[%clk 0:02:53.5]} 12...
f5 {[%clk 0:02:52.1]} 13. b4 {[%clk 0:02:50.3]} 13... f4 {[%clk 0:02:52.4]} 14.
Nd2 {[%clk 0:02:36.6]} 14... g5 {[%clk 0:02:49.3]} 15. Nb3 {[%clk 0:02:37.1]}
15... axb4 {[%clk 0:02:48.1]} 16. axb4 {[%clk 0:02:39]} 16... Nf6 {[%clk
0:02:38.6]} 17. c5 {[%clk 0:02:35]} 17... Ng6 {[%clk 0:02:33.9]} 18. Qc2 {[%clk
0:02:30.7]} 18... h5 {[%clk 0:02:11.4]} 19. Nb5 {[%clk 0:02:19.7]} 19... Ne8
{[%clk 0:02:11.4]} 20. Bb2 {[%clk 0:02:09.2]} 20... h4 {[%clk 0:02:05.8]} 21.
Rbc1 {[%clk 0:02:03.9]} 21... Rf7 {[%clk 0:01:54.4]} 22. Ra1 {[%clk 0:02:00.7]}
22... Rb8 {[%clk 0:01:50.3]} 23. Na7 {[%clk 0:01:56.9]} 23... Bg4 {[%clk
0:01:39.8]} 24. f3 {[%clk 0:01:40]} 24... fxg3 {[%clk 0:01:35.5]} 25. fxg4
{[%clk 0:01:37.1]} 25... Rf2 {[%clk 0:01:23.3]} 26. Re2 {[%clk 0:01:35.8]} 26...
h3 {[%clk 0:01:20.2]} 27. Bf1 {[%clk 0:01:16.5]} 27... gxh2+ {[%clk 0:00:40.8]}
28. Kh1 {[%clk 0:01:10.8]} 28... Rf3 {[%clk 0:00:35.8]} 29. Rxh2 {[%clk
0:01:03.6]} 29... Qf6 {[%clk 0:00:29.3]} 30. Bxh3 {[%clk 0:00:41.7]} 30... Nf4
{[%clk 0:00:26.3]} 31. Bg2 {[%clk 0:00:39.3]} 31... Nxg2 {[%clk 0:00:26]} 32.
Kxg2 {[%clk 0:00:27.2]} 32... Qf4 {[%clk 0:00:19.3]} 33. Rg1 {[%clk 0:00:23]}
33... Nf6 {[%clk 0:00:15.8]} 34. Bc1 {[%clk 0:00:20.7]} 34... Rg3+ {[%clk
0:00:10.9]} 35. Kh1 {[%clk 0:00:20.6]} 35... Qf3+ {[%clk 0:00:10.3]} 36. Qg2
{[%clk 0:00:17.3]} 36... Rxg2 {[%clk 0:00:09.4]} 37. Rhxg2 {[%clk 0:00:18]}
37... Qh3+ {[%clk 0:00:09.7]} 38. Rh2 {[%clk 0:00:18.8]} 38... Qf3+ {[%clk
0:00:11.6]} 39. Rhg2 {[%clk 0:00:20.2]} 39... Qxb3 {[%clk 0:00:13]} 40. Bxg5
{[%clk 0:00:20.7]} 40... Qh3+ {[%clk 0:00:14.4]} 41. Rh2 {[%clk 0:00:21.6]}
41... Qf3+ {[%clk 0:00:16.3]} 42. Rhg2 {[%clk 0:00:22.7]} 42... Nxe4 {[%clk
0:00:18.2]} 43. Bh4 {[%clk 0:00:23.1]} 43... Bf6 {[%clk 0:00:19.4]} 44. g5
{[%clk 0:00:24]} 44... Kf7 {[%clk 0:00:15.4]} 45. Kh2 {[%clk 0:00:20.9]} 45...
Rh8 {[%clk 0:00:15.9]} 46. Rg4 {[%clk 0:00:22.1]} 46... Qf2+ {[%clk 0:00:11.1]}
47. R1g2 {[%clk 0:00:20.9]} 47... Rxh4+ {[%clk 0:00:10.1]} 48. Rxh4 {[%clk
0:00:22.3]} 48... Qxh4+ {[%clk 0:00:12]} 49. Kg1 {[%clk 0:00:24.2]} 49... Qe1+
{[%clk 0:00:12.9]} 50. Kh2 {[%clk 0:00:25.2]} 50... Nxg5 {[%clk 0:00:13.4]} 51.
cxd6 {[%clk 0:00:25.4]} 51... Nf3+ {[%clk 0:00:12.3]} 52. Kh3 {[%clk 0:00:26.5]}
52... Qh4# {[%clk 0:00:14.2]} 0-1

[Event "*** Titled Tuesday Blitz"]
[Site "Chess.com"]
[Date "2019.08.06"]
[Round "10"]
[White "MFguimaraes"]
[Black "GrandGlacier"]
[Result "1-0"]
[WhiteElo "2290"]
[BlackElo "2427"]
[TimeControl "180+2"]
[EndTime "15:24:25 PDT"]
[Termination "MFguimaraes won on time"]

1. e4 {[%clk 0:02:54.4]} 1... e5 {[%clk 0:02:58.1]} 2. Nf3 {[%clk 0:02:50.9]}
2... Nc6 {[%clk 0:02:59.1]} 3. d4 {[%clk 0:02:50.1]} 3... exd4 {[%clk
0:02:59.2]} 4. Nxd4 {[%clk 0:02:45.8]} 4... Nf6 {[%clk 0:03:00.6]} 5. Nc3 {[%clk
0:02:44]} 5... Bb4 {[%clk 0:03:00.6]} 6. Nxc6 {[%clk 0:02:42.5]} 6... bxc6
{[%clk 0:03:02.5]} 7. Bg5 {[%clk 0:02:43.6]} 7... Qe7 {[%clk 0:02:57.1]} 8. Bd3
{[%clk 0:02:41.9]} 8... Qe5 {[%clk 0:02:57.6]} 9. Qd2 {[%clk 0:02:37.2]} 9...
Nxe4 {[%clk 0:02:40.7]} 10. Bxe4 {[%clk 0:02:16.4]} 10... Bxc3 {[%clk
0:02:40.7]} 11. Qxc3 {[%clk 0:02:09.4]} 11... Qxe4+ {[%clk 0:02:38.3]} 12. Be3
{[%clk 0:02:10.6]} 12... O-O {[%clk 0:02:32.3]} 13. O-O {[%clk 0:02:09.9]} 13...
c5 {[%clk 0:02:16.5]} 14. Bxc5 {[%clk 0:02:08.7]} 14... d6 {[%clk 0:02:17]} 15.
f3 {[%clk 0:02:09.2]} 15... Qg6 {[%clk 0:02:13.3]} 16. Bf2 {[%clk 0:02:07]}
16... Bb7 {[%clk 0:02:12.1]} 17. Qxc7 {[%clk 0:02:02.8]} 17... Bxf3 {[%clk
0:02:12.1]} 18. Bg3 {[%clk 0:02:03.7]} 18... Be4 {[%clk 0:02:10.6]} 19. Qxd6
{[%clk 0:01:56.5]} 19... Bxc2 {[%clk 0:02:09.8]} 20. Qxg6 {[%clk 0:01:56.5]}
20... hxg6 {[%clk 0:02:11.7]} 21. Rac1 {[%clk 0:01:54.6]} 21... Rac8 {[%clk
0:02:11.3]} 22. Bd6 {[%clk 0:01:54.3]} 22... Rfe8 {[%clk 0:02:11.7]} 23. Rfe1
{[%clk 0:01:52.8]} 23... Rxe1+ {[%clk 0:02:07.7]} 24. Rxe1 {[%clk 0:01:54.7]}
24... f5 {[%clk 0:02:07.7]} 25. Re7 {[%clk 0:01:54]} 25... Be4 {[%clk
0:02:04.9]} 26. Be5 {[%clk 0:01:53.8]} 26... Rc1+ {[%clk 0:02:05.4]} 27. Kf2
{[%clk 0:01:53.3]} 27... Rc2+ {[%clk 0:02:06.3]} 28. Ke3 {[%clk 0:01:54.6]}
28... Rxg2 {[%clk 0:02:05.9]} 29. Rxg7+ {[%clk 0:01:55.8]} 29... Kf8 {[%clk
0:02:06.6]} 30. Rxa7 {[%clk 0:01:57.3]} 30... g5 {[%clk 0:01:59.7]} 31. b4
{[%clk 0:01:54.6]} 31... Bd5 {[%clk 0:01:56.4]} 32. a4 {[%clk 0:01:51.5]} 32...
f4+ {[%clk 0:01:52.7]} 33. Kd4 {[%clk 0:01:51.8]} 33... Rd2+ {[%clk 0:01:52.4]}
34. Kc5 {[%clk 0:01:53.1]} 34... f3 {[%clk 0:01:49.6]} 35. Bg3 {[%clk 0:01:19]}
35... Be4 {[%clk 0:01:20.2]} 36. Ra6 {[%clk 0:00:52.4]} 36... Kf7 {[%clk
0:01:17.3]} 37. Rh6 {[%clk 0:00:51.5]} 37... Rg2 {[%clk 0:01:14.8]} 38. Rd6
{[%clk 0:00:31.6]} 38... f2 {[%clk 0:00:55.3]} 39. Bxf2 {[%clk 0:00:32.1]} 39...
Rxf2 {[%clk 0:00:57.2]} 40. Rd4 {[%clk 0:00:20.3]} 40... Bf3 {[%clk 0:00:54.6]}
41. h3 {[%clk 0:00:18.9]} 41... Rh2 {[%clk 0:00:53.1]} 42. b5 {[%clk 0:00:20.2]}
42... Rxh3 {[%clk 0:00:53.8]} 43. b6 {[%clk 0:00:21.7]} 43... g4 {[%clk
0:00:34.6]} 44. b7 {[%clk 0:00:22]} 44... Rh8 {[%clk 0:00:30.6]} 45. a5 {[%clk
0:00:22.7]} 45... g3 {[%clk 0:00:24.2]} 46. Rf4+ {[%clk 0:00:22]} 46... Ke6
{[%clk 0:00:25.1]} 47. Rxf3 {[%clk 0:00:23.2]} 47... Kd7 {[%clk 0:00:12.1]} 48.
Rxg3 {[%clk 0:00:20.1]} 48... Kc7 {[%clk 0:00:12.4]} 49. Rg7+ {[%clk 0:00:21.1]}
49... Kb8 {[%clk 0:00:13.3]} 50. a6 {[%clk 0:00:16.7]} 50... Rh6 {[%clk
0:00:13.5]} 51. Rg8+ {[%clk 0:00:16.8]} 1-0

[Event "*** Titled Tuesday Blitz"]
[Site "Chess.com"]
[Date "2019.08.06"]
[Round "10"]
[White "I-Mesquita"]
[Black "BoboHead"]
[Result "1-0"]
[WhiteElo "2676"]
[BlackElo "2162"]
[TimeControl "180+2"]
[EndTime "15:24:27 PDT"]
[Termination "I-Mesquita won by resignation"]

1. e4 {[%clk 0:03:01.9]} 1... e5 {[%clk 0:03:00.7]} 2. Nf3 {[%clk 0:02:57.8]}
2... Nc6 {[%clk 0:03:02.1]} 3. Bb5 {[%clk 0:02:58.9]} 3... a6 {[%clk 0:03:03]}
4. Ba4 {[%clk 0:02:51.7]} 4... Nf6 {[%clk 0:03:03.2]} 5. O-O {[%clk 0:02:51.7]}
5... Bc5 {[%clk 0:03:04.2]} 6. Bxc6 {[%clk 0:02:47.2]} 6... dxc6 {[%clk
0:03:06.1]} 7. Nxe5 {[%clk 0:02:42.3]} 7... Nxe4 {[%clk 0:02:58]} 8. Qe2 {[%clk
0:02:29]} 8... Qd5 {[%clk 0:02:44.2]} 9. Nd3 {[%clk 0:02:14.8]} 9... O-O {[%clk
0:02:41.8]} 10. Nxc5 {[%clk 0:02:15.4]} 10... Nxc5 {[%clk 0:02:42.5]} 11. d3
{[%clk 0:02:12.6]} 11... Bf5 {[%clk 0:02:37.6]} 12. Nc3 {[%clk 0:02:06.6]} 12...
Qe6 {[%clk 0:02:34.2]} 13. Be3 {[%clk 0:01:57.9]} 13... Rfe8 {[%clk 0:02:28]}
14. Qf3 {[%clk 0:01:57.4]} 14... Nd7 {[%clk 0:02:25.3]} 15. Qg3 {[%clk 0:01:57]}
15... Qg6 {[%clk 0:02:04.6]} 16. Qxc7 {[%clk 0:01:49.7]} 16... Ne5 {[%clk
0:02:05.3]} 17. Kh1 {[%clk 0:01:44.2]} 17... Ng4 {[%clk 0:01:52.2]} 18. Rae1
{[%clk 0:01:37.5]} 18... Qh5 {[%clk 0:01:33.2]} 19. Qg3 {[%clk 0:01:30.2]} 19...
Re6 {[%clk 0:01:30.5]} 20. Ne2 {[%clk 0:00:52.7]} 20... Nxe3 {[%clk 0:01:23.8]}
21. fxe3 {[%clk 0:00:53.4]} 21... Rg6 {[%clk 0:01:04.9]} 22. Qf4 {[%clk
0:00:47.3]} 22... Qg4 {[%clk 0:00:58.1]} 23. Ng3 {[%clk 0:00:38.2]} 23... Be6
{[%clk 0:00:56.1]} 24. Qxg4 {[%clk 0:00:36.7]} 24... Rxg4 {[%clk 0:00:57.4]} 25.
Rf4 {[%clk 0:00:34.8]} 25... Rg5 {[%clk 0:00:55.2]} 26. b3 {[%clk 0:00:32.3]}
26... Rd8 {[%clk 0:00:53.9]} 27. e4 {[%clk 0:00:29.4]} 27... g6 {[%clk
0:00:50.2]} 28. Kg1 {[%clk 0:00:27.8]} 28... h5 {[%clk 0:00:51.3]} 29. Kf2
{[%clk 0:00:27.8]} 29... Rc5 {[%clk 0:00:52]} 30. Re2 {[%clk 0:00:27]} 30... a5
{[%clk 0:00:52.9]} 31. Ke3 {[%clk 0:00:27]} 31... a4 {[%clk 0:00:53.5]} 32. Ref2
{[%clk 0:00:20.6]} 32... axb3 {[%clk 0:00:51.7]} 33. axb3 {[%clk 0:00:22.5]}
33... Ra8 {[%clk 0:00:52.6]} 34. b4 {[%clk 0:00:21.6]} 34... Rc3 {[%clk
0:00:50.7]} 35. Kd2 {[%clk 0:00:19.3]} 35... Rca3 {[%clk 0:00:50.9]} 36. Ne2
{[%clk 0:00:19.6]} 36... Ra1 {[%clk 0:00:51.2]} 37. Nd4 {[%clk 0:00:20.4]} 37...
Ba2 {[%clk 0:00:48.1]} 38. b5 {[%clk 0:00:20]} 38... Rd8 {[%clk 0:00:49.1]} 39.
Ne2 {[%clk 0:00:15.1]} 39... cxb5 {[%clk 0:00:49]} 40. Rf6 {[%clk 0:00:16.5]}
40... Be6 {[%clk 0:00:49.4]} 41. Nf4 {[%clk 0:00:16.4]} 41... Ba2 {[%clk
0:00:42.2]} 42. Nh3 {[%clk 0:00:15]} 42... Rd7 {[%clk 0:00:41.1]} 43. Ng5 {[%clk
0:00:16]} 43... Rc7 {[%clk 0:00:42.6]} 44. Rb6 {[%clk 0:00:10.5]} 44... Bb1
{[%clk 0:00:42.3]} 45. Ke3 {[%clk 0:00:07.1]} 45... Rxc2 {[%clk 0:00:37.2]} 46.
Rxc2 {[%clk 0:00:07.3]} 46... Bxc2 {[%clk 0:00:39.1]} 47. Rxb5 {[%clk
0:00:08.5]} 47... Ra3 {[%clk 0:00:37.9]} 48. Rd5 {[%clk 0:00:09.3]} 48... Kg7
{[%clk 0:00:37.4]} 49. Rd7 {[%clk 0:00:09.4]} 49... Kf6 {[%clk 0:00:34.1]} 50.
h4 {[%clk 0:00:10.2]} 50... Kg7 {[%clk 0:00:24.1]} 51. Rxf7+ {[%clk 0:00:10.5]}
51... Kg8 {[%clk 0:00:26]} 52. Rd7 {[%clk 0:00:12.3]} 52... b5 {[%clk
0:00:27.1]} 53. e5 {[%clk 0:00:13.4]} 53... b4 {[%clk 0:00:28.3]} 54. e6 {[%clk
0:00:14.9]} 54... b3 {[%clk 0:00:29.9]} 55. Rd8+ {[%clk 0:00:15.3]} 55... Kg7
{[%clk 0:00:31]} 56. e7 {[%clk 0:00:16.9]} 56... b2 {[%clk 0:00:30.5]} 57. e8=Q
{[%clk 0:00:18.3]} 57... Rxd3+ {[%clk 0:00:31.4]} 58. Rxd3 {[%clk 0:00:18.5]}
58... Kf6 {[%clk 0:00:27.5]} 59. Qe6+ {[%clk 0:00:18.6]} 59... Kg7 {[%clk
0:00:28.2]} 60. Qf7+ {[%clk 0:00:19.7]} 1-0

[Event "*** Titled Tuesday Blitz"]
[Site "Chess.com"]
[Date "2019.08.06"]
[Round "10"]
[White "Ceejay271"]
[Black "HrvojeZagreb"]
[Result "0-1"]
[WhiteElo "2260"]
[BlackElo "2108"]
[TimeControl "180+2"]
[EndTime "15:24:32 PDT"]
[Termination "HrvojeZagreb won by resignation"]

1. Nf3 {[%clk 0:03:01.9]} 1... d5 {[%clk 0:03:00.5]} 2. g3 {[%clk 0:03:03.1]}
2... Bg4 {[%clk 0:03:00.6]} 3. Bg2 {[%clk 0:03:03.7]} 3... c6 {[%clk 0:03:01.8]}
4. O-O {[%clk 0:03:04.7]} 4... Nd7 {[%clk 0:03:02.9]} 5. b3 {[%clk 0:02:57.7]}
5... Ngf6 {[%clk 0:02:56.9]} 6. Bb2 {[%clk 0:02:59.1]} 6... g6 {[%clk
0:02:55.6]} 7. d3 {[%clk 0:02:54.7]} 7... Bg7 {[%clk 0:02:56.2]} 8. Nbd2 {[%clk
0:02:55.8]} 8... O-O {[%clk 0:02:56.8]} 9. h3 {[%clk 0:02:56.9]} 9... Bxf3
{[%clk 0:02:57.9]} 10. Nxf3 {[%clk 0:02:56.8]} 10... a5 {[%clk 0:02:57.9]} 11.
a3 {[%clk 0:02:57.1]} 11... h6 {[%clk 0:02:56.4]} 12. c4 {[%clk 0:02:45]} 12...
Ne8 {[%clk 0:02:51.9]} 13. Bxg7 {[%clk 0:02:44.3]} 13... Nxg7 {[%clk 0:02:45.9]}
14. cxd5 {[%clk 0:02:43]} 14... cxd5 {[%clk 0:02:47.8]} 15. d4 {[%clk 0:02:41]}
15... e6 {[%clk 0:02:44.2]} 16. Qd3 {[%clk 0:02:36.3]} 16... Qb6 {[%clk
0:02:41.6]} 17. Rfc1 {[%clk 0:02:35.2]} 17... Rfc8 {[%clk 0:02:37.7]} 18. e3
{[%clk 0:02:35.2]} 18... Nf5 {[%clk 0:02:36.3]} 19. Bf1 {[%clk 0:02:33.7]} 19...
Nd6 {[%clk 0:02:32.6]} 20. Nd2 {[%clk 0:02:34.2]} 20... Kg7 {[%clk 0:02:27.5]}
21. h4 {[%clk 0:02:30.5]} 21... Nf6 {[%clk 0:02:22.5]} 22. f3 {[%clk 0:02:30.2]}
22... Rxc1 {[%clk 0:02:10.4]} 23. Rxc1 {[%clk 0:02:30.4]} 23... Rc8 {[%clk
0:02:11.9]} 24. Rxc8 {[%clk 0:02:30.8]} 24... Nxc8 {[%clk 0:02:13.8]} 25. Qb5
{[%clk 0:02:30.2]} 25... Qc7 {[%clk 0:02:10.3]} 26. Qc5 {[%clk 0:02:29.6]} 26...
Qxg3+ {[%clk 0:02:03.7]} 27. Bg2 {[%clk 0:02:30.6]} 27... Qb8 {[%clk 0:01:23.4]}
28. e4 {[%clk 0:02:25.4]} 28... b6 {[%clk 0:01:06.4]} 29. Qc6 {[%clk 0:02:21.5]}
29... Ne7 {[%clk 0:01:03.3]} 30. Qc3 {[%clk 0:02:05.7]} 30... Qc8 {[%clk
0:01:03.3]} 31. Qxc8 {[%clk 0:01:46.4]} 31... Nxc8 {[%clk 0:01:05.2]} 32. Kf2
{[%clk 0:01:43.2]} 32... Ne7 {[%clk 0:01:01.7]} 33. Ke3 {[%clk 0:01:44.1]} 33...
g5 {[%clk 0:00:59.9]} 34. hxg5 {[%clk 0:01:44.3]} 34... hxg5 {[%clk 0:01:01.8]}
35. Bf1 {[%clk 0:01:43]} 35... Nh5 {[%clk 0:00:55.8]} 36. Bb5 {[%clk 0:01:39.2]}
36... Nf4 {[%clk 0:00:45.5]} 37. Nb1 {[%clk 0:01:39.6]} 37... dxe4 {[%clk
0:00:30.6]} 38. fxe4 {[%clk 0:01:40.1]} 38... f5 {[%clk 0:00:32]} 39. Nc3 {[%clk
0:01:40.1]} 39... fxe4 {[%clk 0:00:27.3]} 40. Kxe4 {[%clk 0:01:36.1]} 40... Kf6
{[%clk 0:00:25.4]} 41. b4 {[%clk 0:01:25.5]} 41... axb4 {[%clk 0:00:24.8]} 42.
axb4 {[%clk 0:01:25.8]} 42... Nfd5 {[%clk 0:00:21.3]} 43. Na2 {[%clk 0:01:24.3]}
43... g4 {[%clk 0:00:19.8]} 44. Be2 {[%clk 0:01:23.6]} 44... g3 {[%clk
0:00:18.8]} 45. Kf3 {[%clk 0:01:22.6]} 45... Nf5 {[%clk 0:00:19.7]} 46. Bd3
{[%clk 0:01:20.4]} 46... Nxd4+ {[%clk 0:00:17.3]} 47. Kxg3 {[%clk 0:01:21.4]}
47... Nc6 {[%clk 0:00:14.2]} 48. b5 {[%clk 0:01:19.2]} 48... Ncb4 {[%clk
0:00:14]} 49. Nxb4 {[%clk 0:01:12.6]} 49... Nxb4 {[%clk 0:00:15.9]} 50. Bc4
{[%clk 0:01:12]} 50... Ke5 {[%clk 0:00:15]} 51. Kf3 {[%clk 0:01:12.7]} 51... Nc2
{[%clk 0:00:12]} 52. Ke2 {[%clk 0:01:11.3]} 52... Na3 {[%clk 0:00:12.8]} 53. Bd3
{[%clk 0:01:11.5]} 53... Kd4 {[%clk 0:00:13.4]} 54. Kd2 {[%clk 0:01:08.4]} 54...
Kc5 {[%clk 0:00:14.6]} 55. Ke3 {[%clk 0:01:05.9]} 55... Nxb5 {[%clk 0:00:15.6]}
56. Ke4 {[%clk 0:01:07.2]} 56... Nc7 {[%clk 0:00:13.1]} 57. Ke5 {[%clk
0:01:08.4]} 57... b5 {[%clk 0:00:13.7]} 58. Be2 {[%clk 0:01:05.5]} 58... b4
{[%clk 0:00:14.3]} 59. Bd3 {[%clk 0:01:01.5]} 59... b3 {[%clk 0:00:15]} 60. Bb1
{[%clk 0:00:58.4]} 60... Kb4 {[%clk 0:00:15.1]} 61. Kd6 {[%clk 0:00:59.1]} 61...
Nb5+ {[%clk 0:00:15.7]} 62. Kxe6 {[%clk 0:01:00.1]} 62... Na3 {[%clk 0:00:11.9]}
63. Bf5 {[%clk 0:00:56]} 63... Nc2 {[%clk 0:00:12.6]} 64. Ke5 {[%clk 0:00:54.8]}
64... Kc3 {[%clk 0:00:13.4]} 65. Kf4 {[%clk 0:00:51.5]} 65... b2 {[%clk
0:00:14.2]} 0-1

[Event "*** Titled Tuesday Blitz"]
[Site "Chess.com"]
[Date "2019.08.06"]
[Round "10"]
[White "Evgeny81"]
[Black "tigra"]
[Result "1-0"]
[WhiteElo "2613"]
[BlackElo "2712"]
[TimeControl "180+2"]
[EndTime "15:24:39 PDT"]
[Termination "Evgeny81 won by resignation"]

1. Nf3 {[%clk 0:03:01.9]} 1... Nf6 {[%clk 0:02:54.1]} 2. c4 {[%clk 0:03:03.3]}
2... e6 {[%clk 0:02:54.4]} 3. g3 {[%clk 0:03:04.6]} 3... a6 {[%clk 0:02:53.7]}
4. Bg2 {[%clk 0:03:06]} 4... b5 {[%clk 0:02:54.8]} 5. cxb5 {[%clk 0:03:06.7]}
5... axb5 {[%clk 0:02:55.6]} 6. Nd4 {[%clk 0:03:07.5]} 6... Ra5 {[%clk
0:02:54.7]} 7. O-O {[%clk 0:03:04.9]} 7... c5 {[%clk 0:02:53.3]} 8. Nb3 {[%clk
0:03:03.9]} 8... Ra6 {[%clk 0:02:54.3]} 9. d4 {[%clk 0:03:04.9]} 9... c4 {[%clk
0:02:53.1]} 10. Nc5 {[%clk 0:03:01.5]} 10... Bxc5 {[%clk 0:02:50.1]} 11. dxc5
{[%clk 0:03:03.2]} 11... Qc7 {[%clk 0:02:51.5]} 12. Bf4 {[%clk 0:03:01.1]} 12...
e5 {[%clk 0:02:50]} 13. Be3 {[%clk 0:02:54.9]} 13... Bb7 {[%clk 0:02:50.7]} 14.
Bxb7 {[%clk 0:02:52.7]} 14... Qxb7 {[%clk 0:02:52.6]} 15. Nc3 {[%clk 0:02:43.5]}
15... b4 {[%clk 0:02:40]} 16. Na4 {[%clk 0:02:44.2]} 16... Ng4 {[%clk 0:02:37]}
17. Nb6 {[%clk 0:02:38.5]} 17... O-O {[%clk 0:02:25.3]} 18. Nxc4 {[%clk
0:02:37.5]} 18... Rg6 {[%clk 0:02:05.5]} 19. h3 {[%clk 0:02:29.9]} 19... Nxe3
{[%clk 0:02:01.8]} 20. Nxe3 {[%clk 0:02:31.5]} 20... Na6 {[%clk 0:01:59.8]} 21.
Qd5 {[%clk 0:02:29.5]} 21... Qb5 {[%clk 0:01:55.4]} 22. Nf5 {[%clk 0:02:02.8]}
22... Kh8 {[%clk 0:01:50.9]} 23. Qxe5 {[%clk 0:01:59.9]} 23... Qxc5 {[%clk
0:01:48.6]} 24. Qxc5 {[%clk 0:01:57.6]} 24... Nxc5 {[%clk 0:01:50.5]} 25. Rac1
{[%clk 0:01:56.8]} 25... Ne4 {[%clk 0:01:47.6]} 26. Rfd1 {[%clk 0:01:53.8]}
26... Rf6 {[%clk 0:01:48.4]} 27. Rd5 {[%clk 0:00:54.4]} 27... g6 {[%clk
0:01:46.4]} 28. Nd4 {[%clk 0:00:51.2]} 28... Nxf2 {[%clk 0:01:45.8]} 29. Kg2
{[%clk 0:00:48.3]} 29... Ne4 {[%clk 0:01:46.6]} 30. Rxd7 {[%clk 0:00:45.8]}
30... Ra8 {[%clk 0:01:44.6]} 31. Re7 {[%clk 0:00:40.2]} 31... Nd6 {[%clk
0:01:44.4]} 32. e4 {[%clk 0:00:36.1]} 32... Ne8 {[%clk 0:01:19]} 33. e5 {[%clk
0:00:34.7]} 33... Rfa6 {[%clk 0:01:12.5]} 34. Rxf7 {[%clk 0:00:35.4]} 34... Rxa2
{[%clk 0:01:13.5]} 35. Rc2 {[%clk 0:00:25.3]} 35... Kg8 {[%clk 0:01:13.1]} 36.
Rcf2 {[%clk 0:00:21.1]} 36... Ng7 {[%clk 0:01:11.4]} 37. Rb7 {[%clk 0:00:15.7]}
37... Re8 {[%clk 0:01:08.5]} 38. Nc6 {[%clk 0:00:11.7]} 38... Nf5 {[%clk
0:01:05.3]} 39. g4 {[%clk 0:00:12.7]} 39... Ne3+ {[%clk 0:01:05.8]} 40. Kg3
{[%clk 0:00:13.6]} 40... Re6 {[%clk 0:00:55.7]} 41. Ne7+ {[%clk 0:00:11.4]}
41... Kh8 {[%clk 0:00:55.6]} 42. Nd5 {[%clk 0:00:10.9]} 42... Ra8 {[%clk
0:00:41]} 43. Nxe3 {[%clk 0:00:11.1]} 43... Rxe5 {[%clk 0:00:42.9]} 44. Rf3
{[%clk 0:00:11]} 44... Rae8 {[%clk 0:00:36.8]} 45. Nc4 {[%clk 0:00:09.6]} 45...
Re1 {[%clk 0:00:37.6]} 46. Rxb4 {[%clk 0:00:10.4]} 46... Rg1+ {[%clk 0:00:36]}
47. Kh4 {[%clk 0:00:11.3]} 47... Kg7 {[%clk 0:00:33.6]} 48. Nd6 {[%clk
0:00:08.4]} 48... Re5 {[%clk 0:00:31.7]} 49. Rb7+ {[%clk 0:00:08.5]} 49... Kg8
{[%clk 0:00:32.8]} 50. Rb8+ {[%clk 0:00:08.5]} 50... Kg7 {[%clk 0:00:33.3]} 51.
Rb7+ {[%clk 0:00:07.6]} 51... Kg8 {[%clk 0:00:33.9]} 52. Nf7 {[%clk 0:00:08.8]}
52... Re8 {[%clk 0:00:06.6]} 53. Nh6+ {[%clk 0:00:09.4]} 53... Kh8 {[%clk
0:00:08.5]} 54. Rff7 {[%clk 0:00:09.2]} 1-0